[Event "Paul Kerese Mälestusfestival 2022 Välkturniir"]
[Site "Paul Kerese Mälestusfestival 2022 Kiirturniir"]
[Date "????.??.??"]
[Round "2.4"]
[White "Olde, Karl Erik"]
[Black "Golubovskis, Maksims"]
[Result "0-1"]
[TimeControl "3 min + 2 sek iga käigu eest"]
[WhiteElo "1768"]
[BlackElo "2163"]

1. d4 {[%clk 00:03:03]} {[%emt 00:01:37]} Nf6 2. c4 c5 {[%clk 00:03:05]} 3. d5
{[%clk 00:03:06]} {[%emt 00:00:02]} b5 {[%clk 00:03:07]} 4. cxb5 {[%emt
00:00:01]} a6 5. e3 {[%clk 00:03:04]} {[%emt 00:00:04]} axb5 {[%clk 00:03:10]}
6. Bxb5 {[%clk 00:03:05]} {[%emt 00:00:01]} Qa5+ {[%clk 00:03:12]} 7. Nc3
{[%clk 00:03:05]} {[%emt 00:00:02]} Bb7 {[%clk 00:03:13]} 8. Qd2 {[%clk
00:02:51]} {[%emt 00:00:16]} Nxd5 {[%clk 00:02:57]} {[%emt 00:00:19]} 9. Nxd5
{[%clk 00:02:43]} {[%emt 00:00:09]} Bxd5 {[%clk 00:02:43]} {[%emt 00:00:16]} 10.
Qxa5 {[%clk 00:02:09]} {[%emt 00:00:37]} Rxa5 {[%clk 00:02:44]} 11. Bf1 {[%clk
00:02:09]} {[%emt 00:00:01]} Rxa2 {[%emt 00:00:06]} 12. Rxa2 {[%clk 00:02:08]}
{[%emt 00:00:03]} Bxa2 {[%clk 00:02:42]} 13. Nf3 {[%clk 00:02:08]} {[%emt
00:00:01]} g6 {[%clk 00:02:40]} {[%emt 00:00:04]} 14. Bb5 {[%clk 00:02:03]}
{[%emt 00:00:07]} Bg7 {[%clk 00:02:40]} {[%emt 00:00:02]} 15. O-O {[%clk
00:02:03]} {[%emt 00:00:02]} O-O {[%clk 00:02:39]} {[%emt 00:00:04]} 16. Rd1
{[%clk 00:01:58]} {[%emt 00:00:07]} d5 {[%clk 00:02:29]} {[%emt 00:00:12]} 17.
Ba4 {[%clk 00:01:46]} {[%emt 00:00:14]} e6 {[%clk 00:02:02]} {[%emt 00:00:29]}
18. b3 {[%clk 00:01:40]} {[%emt 00:00:08]} c4 {[%clk 00:02:04]} 19. Ba3 {[%clk
00:01:37]} {[%emt 00:00:05]} Rc8 {[%clk 00:01:58]} {[%emt 00:00:08]} 20. Rc1
{[%clk 00:01:27]} {[%emt 00:00:12]} Na6 {[%clk 00:01:31]} {[%emt 00:00:29]} 21.
Nd2 {[%clk 00:01:17]} {[%emt 00:00:11]} Nc5 {[%clk 00:01:21]} {[%emt 00:00:13]}
22. Bxc5 {[%clk 00:01:08]} {[%emt 00:00:11]} Rxc5 {[%clk 00:01:22]} 23. Rc2
{[%clk 00:01:09]} c3 {[%clk 00:01:12]} {[%emt 00:00:12]} 24. Nf3 {[%clk
00:00:30]} {[%emt 00:00:41]} Bb1 {[%clk 00:01:06]} {[%emt 00:00:09]} 25. Rc1
{[%clk 00:00:31]} {[%emt 00:00:02]} Be4 {[%clk 00:00:24]} {[%emt 00:00:44]} 26.
Nd4 {[%clk 00:00:31]} {[%emt 00:00:02]} e5 {[%clk 00:00:23]} {[%emt 00:00:03]}
27. b4 {[%clk 00:00:23]} {[%emt 00:00:10]} Rc4 {[%clk 00:00:18]} {[%emt
00:00:06]} 28. Bb3 {[%clk 00:00:07]} {[%emt 00:00:18]} Rxb4 {[%clk 00:00:16]}
{[%emt 00:00:05]} 29. Rxc3 {[%clk 00:00:04]} {[%emt 00:00:05]} exd4 {[%clk
00:00:15]} {[%emt 00:00:02]} 0-1

[Event "Paul Kerese Mälestusfestival 2022 Välkturniir"]
[Site "Paul Kerese Mälestusfestival 2022 Kiirturniir"]
[Date "????.??.??"]
[Round "2.5"]
[White "Teelem, Lauri"]
[Black "Kraini, Juri"]
[Result "1-0"]
[TimeControl "3 min + 2 sek iga käigu eest"]
[WhiteElo "2012"]
[BlackElo "1692"]

1. d4 {[%clk 00:02:59]} {[%emt 00:00:04]} Nf6 {[%clk 00:03:03]} {[%emt
00:00:02]} 2. c4 {[%clk 00:03:00]} {[%emt 00:00:02]} e6 {[%clk 00:03:03]} 3.
Nc3 {[%clk 00:03:01]} {[%emt 00:00:01]} Bb4 {[%clk 00:03:03]} {[%emt 00:00:02]}
4. a3 {[%clk 00:03:02]} {[%emt 00:00:01]} Bxc3+ {[%clk 00:03:03]} {[%emt
00:00:02]} 5. bxc3 {[%clk 00:03:03]} {[%emt 00:00:01]} d5 {[%clk 00:03:03]}
{[%emt 00:00:02]} 6. e3 {[%clk 00:03:02]} {[%emt 00:00:03]} c5 {[%clk
00:02:57]} {[%emt 00:00:07]} 7. cxd5 {[%clk 00:03:00]} {[%emt 00:00:04]} exd5
{[%clk 00:02:55]} {[%emt 00:00:04]} 8. Bd3 {[%clk 00:03:00]} {[%emt 00:00:03]}
O-O {[%clk 00:02:52]} {[%emt 00:00:04]} 9. Ne2 {[%clk 00:03:01]} {[%emt
00:00:02]} Nc6 {[%clk 00:02:50]} {[%emt 00:00:04]} 10. O-O {[%clk 00:02:58]}
{[%emt 00:00:05]} Bg4 {[%clk 00:02:47]} {[%emt 00:00:05]} 11. f3 {[%clk
00:02:53]} {[%emt 00:00:07]} Bh5 {[%clk 00:02:47]} {[%emt 00:00:01]} 12. Ng3
{[%clk 00:02:51]} {[%emt 00:00:05]} Bg6 {[%clk 00:02:48]} {[%emt 00:00:02]} 13.
Ra2 {[%clk 00:02:34]} {[%emt 00:00:19]} Re8 {[%clk 00:02:43]} {[%emt 00:00:06]}
14. Re2 {[%clk 00:02:05]} {[%emt 00:00:31]} cxd4 {[%clk 00:02:43]} {[%emt
00:00:03]} 15. cxd4 {[%clk 00:02:05]} {[%emt 00:00:02]} Qb6 {[%clk 00:02:29]}
{[%emt 00:00:15]} 16. Kh1 {[%clk 00:01:47]} {[%emt 00:00:21]} Rad8 {[%clk
00:02:30]} {[%emt 00:00:01]} 17. Nf5 {[%clk 00:01:28]} {[%emt 00:00:20]} Bxf5
{[%clk 00:02:13]} {[%emt 00:00:19]} 18. Bxf5 {[%clk 00:01:28]} {[%emt
00:00:02]} Nxd4 {[%clk 00:02:12]} {[%emt 00:00:03]} 19. exd4 {[%clk 00:01:07]}
{[%emt 00:00:23]} Rxe2 {[%clk 00:02:11]} {[%emt 00:00:03]} 20. Qxe2 {[%clk
00:01:08]} {[%emt 00:00:02]} Qxd4 {[%clk 00:02:11]} {[%emt 00:00:02]} 21. Bb2
{[%clk 00:00:45]} {[%emt 00:00:25]} Qf4 {[%clk 00:02:04]} {[%emt 00:00:07]} 22.
Bxf6 {[%clk 00:00:42]} {[%emt 00:00:06]} gxf6 {[%clk 00:02:05]} {[%emt
00:00:02]} 23. Qd3 {[%clk 00:00:34]} {[%emt 00:00:10]} h5 {[%clk 00:01:58]}
{[%emt 00:00:09]} 24. Rd1 {[%clk 00:00:33]} {[%emt 00:00:03]} h4 {[%clk
00:01:50]} {[%emt 00:00:11]} 25. Bg4 {[%clk 00:00:29]} {[%emt 00:00:06]} d4
{[%clk 00:01:32]} {[%emt 00:00:20]} 26. Qd2 {[%clk 00:00:21]} {[%emt 00:00:09]}
Qd6 {[%clk 00:01:29]} {[%emt 00:00:05]} 27. Qh6 {[%clk 00:00:14]} {[%emt
00:00:09]} d3 {[%clk 00:01:21]} {[%emt 00:00:10]} 28. Bf5 {[%clk 00:00:14]}
{[%emt 00:00:02]} Qxa3 {[%clk 00:00:58]} {[%emt 00:00:25]} 29. Bh7+ {[%clk
00:00:14]} {[%emt 00:00:02]} Kh8 {[%clk 00:00:59]} 30. Bg6+ {[%clk 00:00:14]}
{[%emt 00:00:03]} 1-0

[Event "Paul Kerese Mälestusfestival 2022 Välkturniir"]
[Site "Paul Kerese Mälestusfestival 2022 Kiirturniir"]
[Date "????.??.??"]
[Round "2.6"]
[White "Paikens, Reinis"]
[Black "Petrovskis, Olegs"]
[Result "0-1"]
[TimeControl "3 min + 2 sek iga käigu eest"]
[WhiteElo "1678"]
[BlackElo "1984"]

1. c4 {[%clk 00:03:02]} {[%emt 00:00:01]} e6 {[%clk 00:03:04]} 2. Nc3 {[%clk
00:03:03]} d5 {[%clk 00:03:05]} 3. cxd5 {[%clk 00:03:04]} {[%emt 00:00:02]}
exd5 {[%clk 00:03:07]} 4. d4 {[%clk 00:03:05]} Nf6 {[%clk 00:03:08]} {[%emt
00:00:02]} 5. g3 {[%clk 00:03:06]} {[%emt 00:00:01]} c6 {[%clk 00:03:09]}
{[%emt 00:00:01]} 6. Bg2 {[%clk 00:03:06]} {[%emt 00:00:02]} Bb4 {[%clk
00:02:59]} {[%emt 00:00:11]} 7. Nf3 {[%clk 00:03:06]} {[%emt 00:00:02]} O-O
{[%clk 00:03:00]} {[%emt 00:00:02]} 8. O-O {[%clk 00:03:06]} {[%emt 00:00:02]}
Re8 {[%clk 00:02:56]} {[%emt 00:00:07]} 9. Bg5 {[%clk 00:03:06]} {[%emt
00:00:01]} Nbd7 {[%clk 00:02:55]} {[%emt 00:00:03]} 10. Nd2 {[%clk 00:03:02]}
{[%emt 00:00:07]} h6 {[%clk 00:02:52]} {[%emt 00:00:05]} 11. Bxf6 {[%clk
00:02:54]} {[%emt 00:00:10]} Nxf6 {[%clk 00:02:52]} {[%emt 00:00:02]} 12. Re1
{[%clk 00:02:48]} {[%emt 00:00:08]} Bf5 {[%clk 00:02:39]} {[%emt 00:00:15]} 13.
Qb3 {[%clk 00:02:45]} {[%emt 00:00:05]} Bxc3 {[%clk 00:01:53]} {[%emt
00:00:47]} 14. bxc3 {[%clk 00:02:44]} {[%emt 00:00:03]} b6 {[%clk 00:01:47]}
{[%emt 00:00:09]} 15. e3 {[%clk 00:02:42]} {[%emt 00:00:03]} Rc8 {[%clk
00:01:43]} {[%emt 00:00:07]} 16. c4 {[%clk 00:02:42]} {[%emt 00:00:02]} Ne4
{[%clk 00:01:36]} {[%emt 00:00:09]} 17. Nxe4 {[%clk 00:02:39]} {[%emt
00:00:06]} Bxe4 {[%clk 00:01:36]} {[%emt 00:00:02]} 18. f3 {[%clk 00:02:36]}
{[%emt 00:00:05]} Bf5 {[%clk 00:01:23]} {[%emt 00:00:15]} 19. Rad1 {[%clk
00:02:26]} {[%emt 00:00:12]} Be6 {[%clk 00:01:07]} {[%emt 00:00:18]} 20. cxd5
{[%clk 00:02:21]} {[%emt 00:00:06]} cxd5 {[%clk 00:01:05]} {[%emt 00:00:04]} 21.
Qa3 {[%clk 00:02:22]} Qe7 {[%clk 00:01:03]} {[%emt 00:00:04]} 22. Qa4 {[%clk
00:02:03]} {[%emt 00:00:20]} Rc4 {[%clk 00:01:04]} {[%emt 00:00:03]} 23. Qb3
{[%clk 00:02:03]} {[%emt 00:00:02]} Rec8 {[%clk 00:01:04]} 24. Rd2 {[%clk
00:01:55]} {[%emt 00:00:09]} Rc3 {[%clk 00:01:06]} {[%emt 00:00:02]} 25. Qb2
{[%clk 00:01:49]} {[%emt 00:00:06]} Qc7 {[%clk 00:01:00]} {[%emt 00:00:09]} 26.
e4 {[%clk 00:01:44]} {[%emt 00:00:07]} Qc4 {[%clk 00:01:01]} {[%emt 00:00:01]}
27. Bf1 {[%clk 00:01:28]} {[%emt 00:00:17]} Qc6 {[%clk 00:00:58]} {[%emt
00:00:03]} 28. Bb5 {[%clk 00:01:13]} {[%emt 00:00:19]} Qc7 {[%clk 00:00:55]}
{[%emt 00:00:06]} 29. a4 {[%clk 00:01:11]} {[%emt 00:00:04]} Rxf3 {[%clk
00:00:51]} {[%emt 00:00:05]} 30. exd5 {[%clk 00:01:05]} {[%emt 00:00:08]} Bxd5
{[%clk 00:00:52]} {[%emt 00:00:02]} 31. Rf2 {[%clk 00:01:06]} Rxf2 {[%clk
00:00:41]} {[%emt 00:00:14]} 32. Qxf2 {[%clk 00:01:07]} {[%emt 00:00:01]} Qd6
{[%clk 00:00:39]} {[%emt 00:00:02]} 33. Qf5 {[%clk 00:01:02]} {[%emt 00:00:08]}
Be6 {[%clk 00:00:34]} {[%emt 00:00:08]} 34. Qe4 {[%clk 00:00:58]} {[%emt
00:00:05]} Rd8 {[%clk 00:00:35]} {[%emt 00:00:01]} 35. Rd1 {[%clk 00:00:55]}
{[%emt 00:00:05]} Bd5 {[%clk 00:00:36]} {[%emt 00:00:01]} 36. Qe3 {[%clk
00:00:48]} {[%emt 00:00:09]} Qf6 {[%clk 00:00:35]} {[%emt 00:00:03]} 37. Rf1
{[%clk 00:00:47]} {[%emt 00:00:03]} Qd6 {[%clk 00:00:35]} {[%emt 00:00:02]} 38.
Rf4 {[%clk 00:00:45]} {[%emt 00:00:03]} Rc8 {[%clk 00:00:29]} {[%emt 00:00:07]}
39. Rf1 {[%clk 00:00:45]} {[%emt 00:00:02]} Bb7 {[%clk 00:00:29]} {[%emt
00:00:03]} 40. Re1 {[%clk 00:00:33]} {[%emt 00:00:13]} Qd5 {[%clk 00:00:28]}
{[%emt 00:00:03]} 41. Re2 {[%clk 00:00:10]} {[%emt 00:00:25]} Qh1+ {[%clk
00:00:23]} {[%emt 00:00:06]} 42. Kf2 {[%clk 00:00:11]} Qg2+ {[%clk 00:00:23]}
{[%emt 00:00:03]} 43. Ke1 {[%clk 00:00:13]} {[%emt 00:00:02]} Qh1+ {[%clk
00:00:20]} {[%emt 00:00:05]} 44. Kd2 {[%clk 00:00:14]} Qc1+ {[%clk 00:00:20]}
{[%emt 00:00:02]} 45. Kd3 {[%clk 00:00:15]} {[%emt 00:00:01]} Rc3# {[%emt
00:00:06]} 0-1

[Event "Paul Kerese Mälestusfestival 2022 Välkturniir"]
[Site "Paul Kerese Mälestusfestival 2022 Kiirturniir"]
[Date "????.??.??"]
[Round "2.7"]
[White "Zarovs, Aleksandrs"]
[Black "Krilovs, Nikolajs"]
[Result "0-1"]
[TimeControl "3 min + 2 sek iga käigu eest"]
[WhiteElo "1527"]
[BlackElo "1971"]

1. e4 {[%clk 00:03:03]} c5 {[%clk 00:03:03]} {[%emt 00:00:02]} 2. Nf3 {[%clk
00:03:04]} {[%emt 00:00:01]} e6 {[%clk 00:03:03]} {[%emt 00:00:02]} 3. c3
{[%clk 00:03:05]} Nc6 {[%clk 00:02:59]} {[%emt 00:00:07]} 4. d4 {[%clk
00:03:05]} {[%emt 00:00:02]} cxd4 {[%clk 00:02:59]} {[%emt 00:00:02]} 5. cxd4
{[%clk 00:03:07]} d5 {[%clk 00:03:00]} {[%emt 00:00:01]} 6. exd5 {[%clk
00:03:07]} {[%emt 00:00:02]} exd5 {[%clk 00:02:55]} {[%emt 00:00:07]} 7. Nc3
{[%clk 00:03:08]} Nf6 {[%clk 00:02:53]} {[%emt 00:00:03]} 8. Bg5 {[%clk
00:03:03]} {[%emt 00:00:07]} Be7 {[%emt 00:00:22]} 9. Qb3 {[%clk 00:02:51]}
{[%emt 00:00:11]} O-O {[%clk 00:02:24]} {[%emt 00:00:14]} 10. Be2 {[%clk
00:02:37]} {[%emt 00:00:16]} Bf5 {[%clk 00:01:57]} {[%emt 00:00:29]} 11. O-O
{[%clk 00:01:44]} {[%emt 00:00:55]} Nb4 {[%clk 00:01:54]} {[%emt 00:00:05]} 12.
Rfc1 {[%clk 00:01:06]} {[%emt 00:00:40]} Rc8 {[%clk 00:01:32]} {[%emt
00:00:25]} 13. a3 {[%clk 00:00:58]} {[%emt 00:00:09]} Nc6 {[%clk 00:01:32]}
{[%emt 00:00:02]} 14. Qxb7 {[%clk 00:00:23]} {[%emt 00:00:37]} Na5 {[%clk
00:01:21]} {[%emt 00:00:13]} 15. Qxa7 {[%clk 00:00:04]} {[%emt 00:00:21]} Nb3
{[%clk 00:01:21]} 0-1

[Event "Paul Kerese Mälestusfestival 2022 Välkturniir"]
[Site "Paul Kerese Mälestusfestival 2022 Kiirturniir"]
[Date "????.??.??"]
[Round "2.8"]
[White "Heinmets, Tõnu"]
[Black "Holger, Jürjo"]
[Result "1-0"]
[TimeControl "3 min + 2 sek iga käigu eest"]
[WhiteElo "1939"]
[BlackElo "1505"]

1. Nf3 {[%clk 00:03:03]} Nf6 {[%clk 00:03:03]} {[%emt 00:00:02]} 2. g3 {[%clk
00:03:04]} Nc6 {[%clk 00:03:04]} {[%emt 00:00:01]} 3. Bg2 {[%clk 00:03:05]} d5
{[%clk 00:03:05]} {[%emt 00:00:01]} 4. O-O {[%clk 00:03:05]} {[%emt 00:00:02]}
e5 {[%clk 00:03:06]} {[%emt 00:00:01]} 5. d3 {[%clk 00:03:06]} Bc5 {[%clk
00:03:06]} {[%emt 00:00:02]} 6. c3 {[%clk 00:03:03]} {[%emt 00:00:05]} O-O
{[%clk 00:03:05]} {[%emt 00:00:03]} 7. b4 {[%clk 00:03:04]} {[%emt 00:00:02]}
Bb6 {[%clk 00:03:04]} {[%emt 00:00:03]} 8. a4 {[%clk 00:03:05]} a5 {[%clk
00:03:05]} {[%emt 00:00:01]} 9. b5 {[%clk 00:03:06]} Ne7 {[%clk 00:03:02]}
{[%emt 00:00:05]} 10. Nxe5 {[%clk 00:03:06]} {[%emt 00:00:03]} Re8 {[%clk
00:02:56]} {[%emt 00:00:08]} 11. Nd2 {[%clk 00:02:52]} {[%emt 00:00:15]} d4
{[%clk 00:02:50]} {[%emt 00:00:07]} 12. c4 {[%clk 00:02:44]} {[%emt 00:00:11]}
Nf5 {[%clk 00:02:44]} {[%emt 00:00:08]} 13. Nef3 {[%clk 00:02:44]} {[%emt
00:00:01]} h6 {[%clk 00:02:33]} {[%emt 00:00:13]} 14. Nb3 {[%clk 00:02:45]}
{[%emt 00:00:01]} Qe7 {[%clk 00:02:28]} {[%emt 00:00:07]} 15. Ba3 {[%clk
00:02:20]} {[%emt 00:00:27]} Qxe2 {[%clk 00:02:22]} {[%emt 00:00:07]} 16. Qxe2
{[%clk 00:02:21]} {[%emt 00:00:02]} Rxe2 {[%clk 00:02:22]} {[%emt 00:00:02]} 17.
c5 {[%clk 00:02:22]} {[%emt 00:00:02]} Ba7 {[%clk 00:02:17]} {[%emt 00:00:07]}
18. Nfxd4 {[%clk 00:02:18]} {[%emt 00:00:05]} Nxd4 19. Nxd4 {[%clk 00:02:19]}
Rd2 {[%clk 00:01:43]} {[%emt 00:00:18]} 20. Rfd1 {[%clk 00:02:16]} {[%emt
00:00:05]} Rxd1+ {[%clk 00:01:41]} {[%emt 00:00:05]} 21. Rxd1 {[%clk 00:02:16]}
{[%emt 00:00:01]} Bg4 {[%clk 00:01:42]} 22. f3 {[%clk 00:02:07]} {[%emt
00:00:11]} Bh5 {[%clk 00:01:43]} {[%emt 00:00:01]} 23. Nf5 {[%clk 00:01:59]}
{[%emt 00:00:10]} Rd8 {[%clk 00:01:26]} {[%emt 00:00:19]} 24. d4 {[%clk
00:01:57]} {[%emt 00:00:05]} Nd5 {[%clk 00:01:25]} {[%emt 00:00:03]} 25. Re1
{[%clk 00:01:40]} {[%emt 00:00:18]} Kf8 {[%clk 00:01:19]} {[%emt 00:00:08]} 26.
c6+ {[%clk 00:01:20]} {[%emt 00:00:22]} Nb4 {[%clk 00:01:07]} {[%emt 00:00:14]}
27. cxb7 {[%clk 00:01:04]} {[%emt 00:00:19]} Rb8 {[%clk 00:01:08]} 28. f4
{[%clk 00:00:40]} {[%emt 00:00:26]} Bg4 {[%clk 00:01:08]} {[%emt 00:00:02]} 29.
Ne7 {[%clk 00:00:38]} {[%emt 00:00:04]} Be6 {[%clk 00:01:00]} {[%emt 00:00:10]}
30. Nc6 {[%clk 00:00:36]} {[%emt 00:00:04]} 1-0

[Event "Paul Kerese Mälestusfestival 2022 Välkturniir"]
[Site "Paul Kerese Mälestusfestival 2022 Kiirturniir"]
[Date "????.??.??"]
[Round "3.1"]
[White "Agrest, Evgenij"]
[Black "Heinmets, Tõnu"]
[Result "1-0"]
[TimeControl "3 min + 2 sek iga käigu eest"]
[WhiteTitle "GM"]
[WhiteElo "2574"]
[BlackElo "1939"]

1. Nf3 {[%clk 00:03:02]} {[%emt 00:00:01]} Nf6 {[%clk 00:03:04]} 2. b3 {[%clk
00:03:04]} {[%emt 00:00:01]} g6 {[%clk 00:03:00]} {[%emt 00:00:05]} 3. Bb2
{[%clk 00:03:04]} {[%emt 00:00:02]} Bg7 {[%clk 00:03:01]} {[%emt 00:00:01]} 4.
g3 {[%clk 00:03:05]} O-O {[%clk 00:03:02]} {[%emt 00:00:01]} 5. Bg2 {[%clk
00:03:06]} d6 {[%clk 00:02:50]} {[%emt 00:00:14]} 6. d4 {[%clk 00:03:07]}
{[%emt 00:00:02]} d5 {[%clk 00:02:47]} {[%emt 00:00:05]} 7. O-O {[%clk
00:03:02]} {[%emt 00:00:06]} c6 {[%clk 00:02:48]} {[%emt 00:00:01]} 8. c4
{[%clk 00:03:02]} {[%emt 00:00:02]} a6 {[%clk 00:02:41]} {[%emt 00:00:09]} 9.
Nbd2 {[%clk 00:02:56]} {[%emt 00:00:07]} b5 {[%clk 00:02:31]} {[%emt 00:00:12]}
10. Ne5 {[%clk 00:02:54]} {[%emt 00:00:03]} bxc4 {[%clk 00:02:26]} {[%emt
00:00:08]} 11. bxc4 {[%clk 00:02:53]} {[%emt 00:00:03]} Nfd7 {[%clk 00:01:48]}
{[%emt 00:00:39]} 12. Nd3 {[%clk 00:02:52]} {[%emt 00:00:04]} e6 {[%clk
00:01:46]} {[%emt 00:00:04]} 13. Rb1 {[%clk 00:02:44]} {[%emt 00:00:09]} a5
{[%clk 00:01:47]} {[%emt 00:00:01]} 14. Ba3 {[%clk 00:02:37]} {[%emt 00:00:09]}
Re8 {[%clk 00:01:48]} {[%emt 00:00:02]} 15. e3 {[%clk 00:02:33]} {[%emt
00:00:06]} Ba6 {[%clk 00:01:47]} {[%emt 00:00:03]} 16. Qc2 {[%clk 00:02:32]}
{[%emt 00:00:02]} Nb6 {[%clk 00:01:46]} {[%emt 00:00:03]} 17. Nb2 {[%clk
00:02:25]} {[%emt 00:00:09]} Ra7 {[%clk 00:01:39]} {[%emt 00:00:10]} 18. Rfc1
{[%clk 00:02:20]} {[%emt 00:00:07]} e5 {[%clk 00:01:35]} {[%emt 00:00:06]} 19.
cxd5 {[%clk 00:02:02]} {[%emt 00:00:19]} exd4 {[%clk 00:01:13]} {[%emt
00:00:24]} 20. dxc6 {[%clk 00:01:52]} {[%emt 00:00:12]} Rc7 {[%clk 00:01:02]}
{[%emt 00:00:14]} 21. Bc5 {[%clk 00:01:38]} {[%emt 00:00:16]} d3 {[%clk
00:00:56]} {[%emt 00:00:08]} 22. Qb3 {[%clk 00:01:34]} {[%emt 00:00:05]} Na8
{[%clk 00:00:25]} {[%emt 00:00:34]} 23. Qa4 {[%clk 00:01:28]} {[%emt 00:00:07]}
Qc8 {[%clk 00:00:18]} {[%emt 00:00:10]} 24. Nbc4 {[%clk 00:01:16]} {[%emt
00:00:15]} Nxc6 {[%clk 00:00:09]} {[%emt 00:00:11]} 25. Nd6 {[%clk 00:01:14]}
{[%emt 00:00:03]} Qd8 {[%clk 00:00:10]} {[%emt 00:00:02]} 26. Nxe8 {[%clk
00:01:14]} {[%emt 00:00:02]} Qxe8 {[%clk 00:00:11]} {[%emt 00:00:01]} 27. Bd6
{[%clk 00:01:13]} {[%emt 00:00:02]} 1-0

[Event "Paul Kerese Mälestusfestival 2022 Välkturniir"]
[Site "Paul Kerese Mälestusfestival 2022 Kiirturniir"]
[Date "????.??.??"]
[Round "3.2"]
[White "Petrovskis, Olegs"]
[Black "Maiorov, Nikita"]
[Result "0-1"]
[TimeControl "3 min + 2 sek iga käigu eest"]
[BlackTitle "GM"]
[WhiteElo "1984"]
[BlackElo "2417"]

1. d4 {[%clk 00:03:02]} {[%emt 00:00:02]} Nf6 {[%clk 00:02:56]} {[%emt
00:00:09]} 2. Nf3 {[%clk 00:03:03]} {[%emt 00:00:01]} e6 {[%clk 00:02:56]}
{[%emt 00:00:01]} 3. c4 {[%clk 00:03:04]} {[%emt 00:00:02]} d5 {[%clk
00:02:55]} {[%emt 00:00:02]} 4. Nc3 {[%clk 00:03:04]} {[%emt 00:00:03]} a6
{[%clk 00:02:55]} {[%emt 00:00:02]} 5. cxd5 {[%clk 00:03:04]} {[%emt 00:00:02]}
exd5 {[%clk 00:02:56]} {[%emt 00:00:01]} 6. Bg5 {[%clk 00:03:04]} {[%emt
00:00:03]} Be6 {[%clk 00:02:56]} {[%emt 00:00:02]} 7. e3 {[%clk 00:03:01]}
{[%emt 00:00:04]} Nbd7 {[%clk 00:02:56]} {[%emt 00:00:01]} 8. Bd3 {[%clk
00:03:02]} {[%emt 00:00:02]} Bd6 {[%clk 00:02:55]} {[%emt 00:00:02]} 9. O-O
{[%clk 00:02:58]} {[%emt 00:00:06]} h6 {[%clk 00:02:54]} {[%emt 00:00:03]} 10.
Bh4 {[%clk 00:02:59]} {[%emt 00:00:02]} c6 {[%clk 00:02:51]} {[%emt 00:00:04]}
11. Rb1 {[%clk 00:02:58]} {[%emt 00:00:03]} O-O {[%clk 00:02:41]} {[%emt
00:00:12]} 12. b4 {[%clk 00:02:59]} {[%emt 00:00:02]} Qc7 {[%clk 00:02:32]}
{[%emt 00:00:10]} 13. a4 {[%clk 00:02:54]} {[%emt 00:00:08]} Bg4 {[%clk
00:02:30]} {[%emt 00:00:03]} 14. Bg3 {[%clk 00:02:47]} {[%emt 00:00:10]} Bxg3
{[%clk 00:02:29]} {[%emt 00:00:02]} 15. hxg3 {[%clk 00:02:47]} {[%emt
00:00:02]} a5 {[%clk 00:01:32]} {[%emt 00:01:00]} 16. b5 {[%clk 00:02:37]}
{[%emt 00:00:12]} c5 {[%clk 00:01:32]} 17. dxc5 {[%clk 00:02:04]} {[%emt
00:00:35]} Nxc5 {[%clk 00:01:27]} {[%emt 00:00:07]} 18. Rc1 {[%clk 00:02:05]}
{[%emt 00:00:01]} Qe7 {[%clk 00:01:26]} {[%emt 00:00:03]} 19. Bb1 {[%clk
00:01:45]} {[%emt 00:00:22]} Rfd8 {[%clk 00:01:21]} {[%emt 00:00:07]} 20. Ne2
{[%clk 00:01:27]} {[%emt 00:00:20]} Rac8 {[%clk 00:00:58]} {[%emt 00:00:24]} 21.
Ned4 {[%clk 00:01:20]} {[%emt 00:00:10]} Nfe4 {[%clk 00:00:59]} {[%emt
00:00:01]} 22. Qc2 {[%clk 00:00:50]} {[%emt 00:00:32]} Qf6 {[%clk 00:00:52]}
{[%emt 00:00:08]} 23. Qa2 {[%clk 00:00:35]} {[%emt 00:00:18]} g6 {[%clk
00:00:44]} {[%emt 00:00:09]} 24. Qa3 {[%clk 00:00:27]} {[%emt 00:00:10]} h5
{[%clk 00:00:36]} {[%emt 00:00:10]} 25. Bxe4 {[%clk 00:00:20]} {[%emt
00:00:09]} dxe4 {[%clk 00:00:28]} {[%emt 00:00:10]} 26. Nd2 {[%clk 00:00:19]}
{[%emt 00:00:03]} Qe5 {[%clk 00:00:20]} {[%emt 00:00:10]} 27. Rc3 {[%clk
00:00:12]} {[%emt 00:00:09]} Ne6 {[%clk 00:00:12]} {[%emt 00:00:09]} 28. Rfc1
{[%clk 00:00:11]} {[%emt 00:00:04]} Rxc3 {[%clk 00:00:13]} {[%emt 00:00:01]} 29.
Qxc3 {[%clk 00:00:08]} {[%emt 00:00:04]} Nxd4 {[%clk 00:00:13]} {[%emt
00:00:01]} 30. exd4 {[%clk 00:00:05]} {[%emt 00:00:06]} Qxd4 {[%clk 00:00:15]}
31. Nf1 {[%emt 00:00:07]} Qxc3 {[%emt 00:00:03]} 32. Rxc3 Rd1 0-1